fUST/lending_fUST_20250926
["ID","MTS","AMOUNT","RATE_DAILY","PERIOD"]
[387822308,1758892233208,-1582.67825345,0.00026176,2]
[387822310,1758892233218,-500.0,0.0002645,2]
[387822312,1758892233227,-311.38828907,0.00026636,6]
[387822314,1758892233238,-500.0,0.00026667,2]
[387822316,1758892233247,-30000.0,0.00027,30]
[387822318,1758892233257,-311.38828907,0.00027983,8]
[387822320,1758892233266,-21548.7252505,0.00028,30]
[387822322,1758892233276,-311.38828907,0.00029331,11]
[387822324,1758892233287,-152.24032953,0.00029618,5]
[387822326,1758892233297,-500.0,0.0003127,60]
[387822327,1758892233306,-311.38828907,0.00032025,17]
[387822328,1758892233316,-500.0,0.00032876,120]
[387822329,1758892233326,-651.741405,0.00032877,2]
[387822330,1758892233336,-311.38828907,0.00033372,20]
[387822331,1758892233348,-500.0,0.00033698,120]
[387822332,1758892233357,-500.0,0.0003452,120]
[387822333,1758892233367,-311.38828907,0.0003472,23]
[387822334,1758892233377,-532.55029573,0.00035342,120]
[387822335,1758892233387,-311.38828907,0.00036067,26]
[387822336,1758892233397,-311.38828907,0.00037414,29]
[387822337,1758892233407,-960.0,0.00038082,120]
[387822338,1758892233417,-651.741405,0.00038356,2]
[387822339,1758892233427,-311.38828907,0.00038761,32]
[387822340,1758892233437,-1000.0,0.0004,120]
[387822341,1758892233447,-1000.0,0.0004,120]
[387822342,1758892233457,-311.38828907,0.00040109,34]
[387822343,1758892233467,-311.38828907,0.00041456,37]
[387822344,1758892233476,-311.38828907,0.00042803,40]
[387822345,1758892233486,-161.87296202,0.00043016,3]
[387822346,1758892233496,-177.40725913,0.00043142,2]
[387822347,1758892233506,-319.33306643,0.00043142,2]
[387822348,1758892233516,-2000.0,0.000434,34]
[387822349,1758892233526,-651.741405,0.00043836,2]
[387822350,1758892233536,-311.38828907,0.0004415,43]
[387822351,1758892233545,-1083.0,0.000444,36]
[387822352,1758892233555,-949.0,0.00045,120]
[387822353,1758892233564,-1000.0,0.00045,120]
[387822354,1758892233574,-150.3730051,0.00045,120]
[387822355,1758892233584,-2000.0,0.00045,120]
[387822356,1758892233593,-2000.0,0.00045,120]
[387822357,1758892233604,-311.38828907,0.00045498,46]
[387822358,1758892233613,-500.98,0.000457,13]
[387822359,1758892233623,-6438.33,0.00046445,13]
[387822360,1758892233632,-7113.23,0.00046445,13]
[387822361,1758892233642,-311.38828907,0.00046845,49]
[387822362,1758892233651,-155.008,0.0004686,78]
[387822363,1758892233661,-10000.0,0.00047,60]
[387822364,1758892233670,-1252.47435526,0.00047,30]
[387822365,1758892233681,-2221.0,0.00047,120]
[387822366,1758892233691,-200.0,0.00047169,120]
[387822367,1758892233700,-200.0,0.00047169,120]
[387822368,1758892233710,-5000.0,0.000472,120]
[387822369,1758892233719,-196.61271164,0.0004725,120]
[387822370,1758892233728,-2952.12,0.00047507,13]
[387822371,1758892233738,-2952.12,0.00047507,13]
[387822372,1758892233747,-2973.91,0.00047892,13]
[387822373,1758892233757,-311.38828907,0.00048192,52]
[387822374,1758892233767,-7000.0,0.000482,120]
[387822375,1758892233776,-5020.88,0.0004869,13]
[387822376,1758892233786,-5020.88,0.0004869,13]
[387822377,1758892233796,-4752.66,0.000487,13]
[387822378,1758892233806,-10000.0,0.00049,60]
[387822379,1758892233816,-268.25,0.00049,120]
[387822380,1758892233826,-651.741405,0.00049315,2]
[387822381,1758892233837,-1000.0,0.00049333,90]
[387822382,1758892233849,-6040.0,0.000495,13]
[387822383,1758892233859,-5384.43,0.000495,13]
[387822384,1758892233870,-6040.0,0.000495,13]
[387822385,1758892233880,-311.38828907,0.00049539,55]
[387822386,1758892233890,-8000.0,0.000498,120]
[387822387,1758892233901,-3000.0,0.0005,120]
[387822388,1758892233911,-7100.0,0.000502,120]
[387822389,1758892233922,-3985.48,0.00050298,13]
[387822390,1758892233931,-2813.80186601,0.00050587,13]
[387822391,1758892233944,-693.31997,0.00050587,13]
[387822481,1758892238459,-281.79161708,0.00050587,13]
[387822482,1758892238582,-218.36654691,0.00050587,13]
[387822483,1758892238593,-311.38828907,0.00050887,58]
[387822484,1758892238602,-202.0,0.00051,83]
[387822485,1758892238611,-3000.0,0.00051,85]
[387822486,1758892238622,-4881.412427,0.0005101,85]
[387822487,1758892238631,-500.0,0.00051015,30]
[387822489,1758892238641,-500.0,0.00051039,85]
[387822491,1758892238650,-500.0,0.00051069,85]
[387822492,1758892238659,-4948.04,0.00051497,13]
[387822493,1758892238668,-4948.04,0.00051497,13]
[387822494,1758892238677,-500.0,0.00051797,84]
[387822495,1758892238687,-151.0,0.000518,23]
[387822496,1758892238696,-219.1,0.000519,120]
[387822497,1758892238705,-4000.0,0.00052,120]
[387822498,1758892238715,-480.0,0.00052054,120]
[387822499,1758892238724,-500.0,0.00052128,60]
[387822500,1758892238734,-7000.0,0.000522,120]
[387822501,1758892238743,-311.38828907,0.00052234,60]
[387822502,1758892238752,-508.1779137,0.00052795,30]
[387822503,1758892238762,-588.5325414,0.00052795,30]
[387822504,1758892238771,-1660.91,0.0005289,13]
[387822505,1758892238780,-9175.32,0.000529,13]
[387822506,1758892238789,-190.28124787,0.000531,2]
[387822507,1758892238798,-5000.0,0.000532,120]
[387822508,1758892238807,-500.0,0.00053368,63]
[387822509,1758892238816,-500.0,0.00053499,120]
[387822510,1758892238825,-500.0,0.00053499,120]
[387822511,1758892238835,-311.38828907,0.00053581,63]
[387822512,1758892238846,-500.0,0.00053591,30]
[387822513,1758892238857,-500.0,0.00053591,30]
[387822514,1758892238866,-104258.49,0.000536,13]
[387822515,1758892238876,-151.0,0.00053699,13]
[387822516,1758892238885,-198.0,0.00053699,13]
[387822517,1758892238894,-151.0,0.00053699,13]
[387822518,1758892238903,-198.0,0.00053699,13]
[387822519,1758892238912,-151.0,0.00053699,13]
[387822520,1758892238922,-151.0,0.00053699,13]
[387822521,1758892238931,-247.61315356,0.00053699,13]
[387822522,1758892238941,-151.0,0.00053699,13]
[387822523,1758892238950,-151.0,0.00053699,13]
[387822524,1758892238958,-151.0,0.00053699,13]
[387822525,1758892238968,-151.0,0.00053699,13]
[387822526,1758892238977,-151.0,0.00053699,13]
[387822527,1758892238986,-151.0,0.00053699,13]
[387822528,1758892238996,-158.6496239,0.00053699,13]
[387822529,1758892239005,-151.0,0.00053699,13]
[387822530,1758892239015,-246.56925732,0.00053699,13]
[387822531,1758892239024,-151.0,0.00053699,13]
[387822532,1758892239033,-151.0,0.00053699,13]
[387822533,1758892239043,-151.0,0.00053699,13]
[387822534,1758892239053,-198.0,0.00053699,13]
[387822535,1758892239062,-151.0,0.00053699,13]
[387822536,1758892239071,-151.0,0.00053699,13]
[387822537,1758892239081,-151.0,0.00053699,13]
[387822538,1758892239091,-222.4412413,0.00053699,13]
[387822539,1758892239100,-152.12966294,0.00053699,13]
[387822540,1758892239113,-151.0,0.00053699,13]
[387822541,1758892239123,-151.0,0.00053699,13]
[387822542,1758892239132,-151.0,0.00053699,13]
[387822543,1758892239142,-151.0,0.00053699,13]
[387822544,1758892239152,-245.0,0.00053699,13]
[387822545,1758892239162,-151.0,0.00053699,13]
[387822546,1758892239171,-151.0,0.00053699,13]
[387822547,1758892239182,-151.0,0.00053699,13]
[387822548,1758892239192,-198.0,0.00053699,13]
[387822549,1758892239201,-500.0,0.00053699,13]
[387822550,1758892239211,-500.0,0.00053699,13]
[387822551,1758892239220,-500.0,0.00053699,13]
[387822552,1758892239230,-500.0,0.00053699,13]
[387822553,1758892239239,-500.0,0.00053699,13]
[387822554,1758892239248,-500.0,0.00053699,13]
[387822555,1758892239258,-500.0,0.00053699,13]
[387822556,1758892239268,-547.0,0.00053699,13]
[387822557,1758892239276,-233.14270402,0.00053699,13]
[387822558,1758892239285,-151.0,0.00053699,13]
[387822559,1758892239294,-151.0,0.00053699,13]
[387822560,1758892239303,-198.0,0.00053699,13]
[387822561,1758892239312,-151.0,0.00053699,13]
[387822562,1758892239321,-151.0,0.00053699,13]
[387822563,1758892239331,-196.08091635,0.00053699,13]
[387822564,1758892239339,-151.0,0.00053699,13]
[387822565,1758892239348,-343.65648943,0.00053699,13]
[387822566,1758892239358,-500.0,0.00053699,13]
[387822567,1758892239367,-500.0,0.00053699,13]
[387822568,1758892239376,-500.0,0.00053699,13]
[387822569,1758892239384,-500.0,0.00053699,13]
[387822570,1758892239393,-470.25772031,0.00053699,13]
[387822571,1758892239402,-500.0,0.000537,30]
[387822573,1758892239410,-680.47801808,0.00054,120]
[387822575,1758892239419,-200.0,0.00054,120]
[387822577,1758892239427,-1000.0,0.00054,120]
[387822579,1758892239436,-500.0,0.00054,120]
[387822580,1758892239444,-1000.0,0.00054,30]
[387822581,1758892239453,-2000.0,0.00054,120]
[387822582,1758892239462,-268.13,0.00054069,30]
[387822583,1758892239558,-156.96730782,0.00054078,14]
[387822585,1758892239568,-190.28124786,0.0005434,2]
[387822587,1758892239578,-1375.04597791,0.0005434,2]
[387822588,1758892239587,-152.02818521,0.00054344,120]
[387822590,1758892239597,-1375.0459779,0.00054357,2]
[387822591,1758892239607,-1375.0459779,0.00054373,2]
[387822592,1758892239616,-250.0,0.000544,30]
[387822593,1758892239627,-250.0,0.000544,30]
[387822594,1758892239636,-250.0,0.000544,30]
[387822595,1758892239645,-250.0,0.000544,30]
[387822596,1758892239654,-250.0,0.000544,30]
[387822597,1758892239663,-153.3,0.000544,30]
[387822598,1758892239672,-362533.99754321,0.0005443,120]
[387822599,1758892239682,-1000000.0,0.0005444,30]
[387822600,1758892239691,-500.0,0.0005444,120]
[387822601,1758892239701,-1000000.0,0.00054444,120]
[387822602,1758892239711,-500.0,0.00054473,10]
[387822604,1758892239721,-500.0,0.00054473,10]
[387822605,1758892239730,-500.0,0.00054473,10]
[387822606,1758892239739,-500.0,0.00054473,10]
[387822607,1758892239749,-500.0,0.00054473,10]
[387822608,1758892239758,-501.20991974,0.00054473,10]
[387822609,1758892239767,-500.0,0.00054473,10]
[387822610,1758892239777,-500.0,0.00054473,10]
[387822611,1758892239786,-500.0,0.00054473,10]
[387822612,1758892239796,-500.0,0.000545,120]
[387822613,1758892239805,-749.3,0.000545,14]
[387822614,1758892239815,-500.0,0.00054714,120]
[387822615,1758892239825,-500.0,0.00054773,10]
[387822616,1758892239834,-500.0,0.00054773,10]
[387822617,1758892239844,-480.0,0.00054794,120]
[387822618,1758892239853,-480.0,0.00054794,120]
[387822619,1758892239862,-487.59612358,0.00054794,120]
[387822620,1758892239872,-480.0,0.00054794,120]
[387822621,1758892239881,-156.42299935,0.00054794,120]
[387822622,1758892239891,-480.0,0.00054794,120]
[387822623,1758892239900,-480.0,0.00054794,120]
[387822624,1758892239909,-480.0,0.00054794,120]
[387822625,1758892239920,-475.35922446,0.00054794,120]
[387822626,1758892239929,-486.31441079,0.00054794,120]
[387822627,1758892239939,-480.0,0.00054794,120]
[387822628,1758892239948,-480.0,0.00054794,120]
[387822629,1758892239957,-480.0,0.00054794,120]
[387822630,1758892239967,-480.0,0.00054794,120]
[387822631,1758892239977,-480.0,0.00054794,120]
[387822632,1758892239986,-480.0,0.00054794,120]
[387822633,1758892239995,-480.0,0.00054794,120]
[387822634,1758892240005,-480.73208494,0.00054794,120]
[387822635,1758892240013,-480.0,0.00054794,120]
[387822636,1758892240022,-480.0,0.00054794,120]
[387822637,1758892240031,-483.1144434,0.00054794,120]
[387822639,1758892240040,-480.0,0.00054794,120]
[387822640,1758892240049,-480.0,0.00054794,120]
[387822641,1758892240058,-407.4427133,0.00054794,120]
[387822642,1758892240067,-257.42453929,0.00054794,120]
[387822643,1758892240076,-480.0,0.00054794,120]
[387822644,1758892240085,-480.0,0.00054794,120]
[387822645,1758892240095,-600.0,0.00054794,120]
[387822646,1758892240105,-480.0,0.00054794,120]
[387822647,1758892240118,-480.0,0.00054794,120]
[387822648,1758892240127,-240.74080107,0.00054794,120]
[387822649,1758892240136,-480.0,0.00054794,120]
[387822650,1758892240145,-229.59682972,0.00054794,120]
[387822651,1758892240155,-480.0,0.00054794,120]
[387822652,1758892240165,-480.0,0.00054794,120]
[387822653,1758892240174,-480.0,0.00054794,120]
[387822654,1758892240183,-480.0,0.00054794,120]
[387822655,1758892240194,-486.72423235,0.00054794,120]
[387822656,1758892240204,-483.79899324,0.00054794,120]
[387822657,1758892240214,-480.0,0.00054794,120]
[387822658,1758892240224,-205.30627242,0.00054794,120]
[387822659,1758892240234,-480.0,0.00054794,120]
[387822660,1758892240244,-483.19010131,0.00054794,120]
[387822661,1758892240254,-484.15659557,0.00054794,120]
[387822662,1758892240263,-480.0,0.00054794,120]
[387822663,1758892240273,-480.0,0.00054794,120]
[387822664,1758892240282,-480.0,0.00054794,120]
[387822665,1758892240291,-500.0,0.00054794,120]
[387822666,1758892240300,-500.0,0.00054794,120]
[387822667,1758892240310,-500.0,0.00054794,120]
[387822668,1758892240319,-500.0,0.00054794,120]
[387822669,1758892240329,-484.96768456,0.00054794,120]
[387822670,1758892240338,-500.0,0.00054794,120]
[387822671,1758892240348,-480.0,0.00054794,120]
[387822672,1758892240358,-480.0,0.00054794,120]
[387822673,1758892240367,-480.0,0.00054794,120]
[387822674,1758892240376,-480.0,0.00054794,120]
[387822675,1758892240386,-480.0,0.00054794,120]
[387822676,1758892240395,-410.03094977,0.00054794,120]
[387822677,1758892240404,-480.0,0.00054794,120]
[387822678,1758892240414,-480.0,0.00054794,120]
[387822679,1758892240423,-480.0,0.00054794,7]
[387822680,1758892240432,-480.0,0.00054794,120]
[387822681,1758892240442,-483.19409906,0.00054794,120]
[387822682,1758892240451,-480.51023741,0.00054794,120]
[387822683,1758892240461,-481.34715772,0.00054794,120]
[387822684,1758892240470,-480.0,0.00054794,120]
[387822685,1758892240479,-480.0,0.00054794,120]
[387822686,1758892240488,-480.0,0.00054794,120]
[387822687,1758892240497,-480.0,0.00054794,120]
[387822688,1758892240507,-480.0,0.00054794,120]
[387822689,1758892240516,-480.0,0.00054794,120]
[387822690,1758892240525,-480.0,0.00054794,120]
[387822691,1758892240535,-480.0,0.00054794,120]
[387822692,1758892240544,-480.0,0.00054794,120]
[387822693,1758892240554,-480.0,0.00054794,120]
[387822694,1758892240563,-483.16878399,0.00054794,120]
[387822695,1758892240573,-480.0,0.00054794,120]
[387822696,1758892240582,-483.18885709,0.00054794,120]
[387822697,1758892240591,-481.45917827,0.00054794,120]
[387822698,1758892240600,-480.0,0.00054794,120]
[387822699,1758892240609,-480.0,0.00054794,120]
[387822700,1758892240619,-480.0,0.00054794,120]
[387822701,1758892240627,-480.0,0.00054794,120]
[387822702,1758892240636,-487.57938362,0.00054794,120]
[387822703,1758892240645,-480.0,0.00054794,120]
[387822704,1758892240654,-480.0,0.00054794,120]
[387822705,1758892240663,-480.0,0.00054794,120]
[387822706,1758892240672,-480.0,0.00054794,120]
[387822707,1758892240681,-480.0,0.00054794,120]
[387822708,1758892240690,-711.22,0.00054794,120]
[387822709,1758892240699,-483.28756732,0.00054794,20]
[387822710,1758892240708,-480.0,0.00054794,120]
[387822711,1758892240717,-480.0,0.00054794,120]
[387822712,1758892240726,-480.0,0.00054794,120]
[387822713,1758892240735,-481.48628109,0.00054794,120]
[387822714,1758892240744,-480.0,0.00054794,120]
[387822715,1758892240753,-481.07329798,0.00054794,120]
[387822716,1758892240762,-480.0,0.00054794,120]
[387822717,1758892240772,-480.0,0.00054794,120]
[387822718,1758892240781,-481.36532559,0.00054794,120]
[387822719,1758892240790,-480.0,0.00054794,120]
[387822720,1758892240800,-480.0,0.00054794,120]
[387822721,1758892240809,-481.95387377,0.00054794,120]
[387822722,1758892240817,-480.0,0.00054794,120]
[387822723,1758892240827,-480.0,0.00054794,120]
[387822724,1758892240836,-480.0,0.00054794,120]
[387822725,1758892240845,-480.0,0.00054794,120]
[387822726,1758892240855,-480.0,0.00054794,120]
[387822727,1758892240865,-480.0,0.00054794,120]
[387822728,1758892240875,-481.37641816,0.00054794,120]
[387822729,1758892240884,-480.0,0.00054794,120]
[387822730,1758892240893,-480.0,0.00054794,120]
[387822731,1758892240902,-443.73088086,0.00054794,120]
[387822732,1758892240912,-480.0,0.00054794,120]
[387822733,1758892240921,-480.0,0.00054794,120]
[387822734,1758892240930,-480.0,0.00054794,120]
[387822735,1758892240939,-480.0,0.00054794,120]
[387822736,1758892240948,-480.0,0.00054794,120]
[387822737,1758892240957,-480.76539101,0.00054794,120]
[387822738,1758892240966,-481.50572696,0.00054794,120]
[387822739,1758892240975,-480.0,0.00054794,120]
[387822740,1758892240985,-480.0,0.00054794,120]
[387822741,1758892240994,-480.0,0.00054794,120]
[387822742,1758892241003,-608.14302104,0.00054794,120]
[387822743,1758892241011,-480.0,0.00054794,120]
[387822744,1758892241021,-480.0,0.00054794,120]
[387822745,1758892241030,-480.0,0.00054794,120]
[387822746,1758892241039,-482.37495146,0.00054794,120]
[387822747,1758892241047,-500.0,0.00054794,120]
[387822748,1758892241056,-480.0,0.00054794,120]
[387822749,1758892241065,-480.0,0.00054794,120]
[387822750,1758892241075,-480.0,0.00054794,120]
[387822751,1758892241084,-480.0,0.00054794,120]
[387822752,1758892241093,-480.9539855,0.00054794,120]
[387822753,1758892241103,-480.0,0.00054794,120]
[387822754,1758892241121,-480.0,0.00054794,120]
[387822755,1758892241132,-480.0,0.00054794,120]
[387822756,1758892241141,-480.0,0.00054794,120]
[387822757,1758892241150,-480.0,0.00054794,120]
[387822758,1758892241160,-480.0,0.00054794,120]
[387822759,1758892241170,-480.0,0.00054794,120]
[387822760,1758892241179,-480.71390393,0.00054794,120]
[387822761,1758892241189,-480.0,0.00054794,120]
[387822762,1758892241199,-480.0,0.00054794,120]
[387822763,1758892241208,-480.0,0.00054794,120]
[387822765,1758892241217,-480.0,0.00054794,120]
[387822766,1758892241227,-480.0,0.00054794,120]
[387822769,1758892241237,-480.0,0.00054794,120]
[387822771,1758892241247,-480.0,0.00054794,120]
[387822772,1758892241256,-480.0,0.00054794,120]
[387822775,1758892241266,-345.29703838,0.00054794,120]
[387822776,1758892241275,-480.0,0.00054794,120]
[387822778,1758892241284,-480.0,0.00054794,120]
[387822780,1758892241293,-480.0,0.00054794,120]
[387822782,1758892241303,-616.24908063,0.00054794,120]
[387822784,1758892241312,-482.53395417,0.00054794,120]
[387822786,1758892241321,-480.0,0.00054794,120]
[387822788,1758892241330,-480.39761192,0.00054794,120]
[387822789,1758892241339,-480.0,0.00054794,120]
[387822790,1758892241348,-480.0,0.00054794,120]
[387822791,1758892241359,-480.0,0.00054794,120]
[387822792,1758892241368,-480.0,0.00054794,120]
[387822794,1758892241378,-480.0,0.00054794,120]
[387822796,1758892241387,-480.0,0.00054794,120]
[387822798,1758892241396,-1000.0,0.00054794,120]
[387822800,1758892241405,-480.0,0.00054794,120]
[387822802,1758892241415,-480.80472566,0.00054794,120]
[387822804,1758892241424,-480.0,0.00054794,120]
[387822806,1758892241433,-480.0,0.00054794,120]
[387822808,1758892241443,-480.0,0.00054794,120]
[387822810,1758892241452,-480.0,0.00054794,120]
[387822812,1758892241462,-480.0,0.00054794,120]
[387822814,1758892241471,-480.0,0.00054794,120]
[387822816,1758892241480,-480.0,0.00054794,120]
[387822818,1758892241489,-481.29124398,0.00054794,120]
[387822820,1758892241498,-480.0,0.00054794,120]
[387822822,1758892241507,-480.0,0.00054794,120]
[387822824,1758892241516,-480.0,0.00054794,120]
[387822826,1758892241526,-480.0,0.00054794,120]
[387822836,1758892241616,-480.0,0.00054794,120]
[387822838,1758892241627,-480.0,0.00054794,120]
[387822840,1758892241636,-480.0,0.00054794,120]
[387822842,1758892241646,-202.113857,0.00054794,120]
[387822844,1758892241656,-450.69882368,0.00054794,120]
[387822845,1758892241666,-480.0,0.00054794,120]
[387822846,1758892241675,-480.0,0.00054794,120]
[387822847,1758892241684,-480.0,0.00054794,120]
[387822848,1758892241694,-480.0,0.00054794,120]
[387822849,1758892241703,-480.0,0.00054794,120]
[387822850,1758892241712,-480.0,0.00054794,120]
[387822851,1758892241722,-480.0,0.00054794,120]
[387822852,1758892241731,-480.0,0.00054794,120]
[387822853,1758892241741,-480.0,0.00054794,120]
[387822854,1758892241750,-480.0,0.00054794,120]
[387822855,1758892241760,-340.33333013,0.00054794,120]
[387822856,1758892241769,-480.0,0.00054794,120]
[387822857,1758892241779,-480.0,0.00054794,120]
[387822858,1758892241788,-480.58674203,0.00054794,120]
[387822859,1758892241798,-480.0,0.00054794,120]
[387822860,1758892241807,-480.0,0.00054794,120]
[387822861,1758892241817,-480.0,0.00054794,120]
[387822862,1758892241828,-480.0,0.00054794,120]
[387822863,1758892241838,-480.0,0.00054794,120]
[387822864,1758892241848,-480.0,0.00054794,120]
[387822865,1758892241860,-527.81,0.00054794,120]
[387822866,1758892241871,-480.0,0.00054794,120]
[387822867,1758892241882,-480.0,0.00054794,120]
[387822868,1758892241892,-480.0,0.00054794,120]
[387822869,1758892241901,-480.0,0.00054794,120]
[387822870,1758892241911,-480.0,0.00054794,120]
[387822871,1758892241920,-480.0,0.00054794,120]
[387822872,1758892241930,-482.09061653,0.00054794,120]
[387822873,1758892241940,-480.0,0.00054794,120]
[387822874,1758892241949,-480.0,0.00054794,120]
[387822875,1758892241958,-480.0,0.00054794,120]
[387822876,1758892241968,-480.0,0.00054794,20]
[387822877,1758892241978,-480.0,0.00054794,120]
[387822878,1758892241988,-480.75096541,0.00054794,120]
[387822879,1758892241997,-480.0,0.00054794,120]
[387822880,1758892242007,-480.0,0.00054794,120]
[387822881,1758892242017,-422.14820973,0.00054794,120]
[387822882,1758892242026,-480.0,0.00054794,120]
[387822883,1758892242036,-480.0,0.00054794,120]
[387822884,1758892242046,-480.0,0.00054794,120]
[387822885,1758892242057,-480.0,0.00054794,120]
[387822886,1758892242067,-480.0,0.00054794,120]
[387822887,1758892242081,-480.0,0.00054794,120]
[387822888,1758892242093,-480.0,0.00054794,120]
[387822889,1758892242107,-200.0,0.00054794,120]
[387822890,1758892242120,-480.0,0.00054794,120]
[387822891,1758892242139,-339.94488029,0.00054794,120]
[387822892,1758892242151,-3840.0,0.00054794,120]
[387822893,1758892242161,-480.0,0.00054794,120]
[387822894,1758892242171,-480.0,0.00054794,120]
[387822895,1758892242184,-480.0,0.00054794,120]
[387822896,1758892242193,-480.0,0.00054794,120]
[387822897,1758892242203,-484.85169255,0.00054794,120]
[387822898,1758892242212,-481.34155722,0.00054794,120]
[387822899,1758892242221,-480.0,0.00054794,120]
[387822900,1758892242231,-480.0,0.00054794,120]
[387822901,1758892242242,-480.0,0.00054794,120]
[387822902,1758892242252,-481.67055847,0.00054794,120]
[387822903,1758892242263,-480.0,0.00054794,120]
[387822904,1758892242273,-480.0,0.00054794,120]
[387822905,1758892242282,-480.0,0.00054794,120]
[387822906,1758892242292,-480.0,0.00054794,120]
[387822907,1758892242302,-480.0,0.00054794,120]
[387822908,1758892242312,-480.0,0.00054794,120]
[387822909,1758892242322,-480.0,0.00054794,120]
[387822910,1758892242332,-480.0,0.00054794,120]
[387822911,1758892242342,-410.79152184,0.00054794,120]
[387822912,1758892242352,-480.0,0.00054794,120]
[387822913,1758892242364,-480.0,0.00054794,120]
[387822914,1758892242374,-480.0,0.00054794,120]
[387822915,1758892242385,-480.0,0.00054794,120]
[387822916,1758892242395,-480.0,0.00054794,120]
[387822917,1758892242405,-480.0,0.00054794,120]
[387822918,1758892242414,-480.0,0.00054794,120]
[387822919,1758892242424,-480.0,0.00054794,120]
[387822920,1758892242433,-480.0,0.00054794,120]
[387822921,1758892242443,-500.0,0.00054794,90]
[387822922,1758892242453,-491.01877197,0.00054794,120]
[387822923,1758892242462,-480.0,0.00054794,120]
[387822924,1758892242472,-480.0,0.00054794,120]
[387822925,1758892242481,-480.0,0.00054794,120]
[387822926,1758892242491,-480.0,0.00054794,120]
[387822927,1758892242501,-480.0,0.00054794,120]
[387822928,1758892242510,-500.0,0.00054794,120]
[387822929,1758892242520,-518.9649832,0.00054794,120]
[387822930,1758892242530,-480.0,0.00054794,120]
[387822931,1758892242540,-480.0,0.00054794,120]
[387822932,1758892242550,-480.0,0.00054794,120]
[387822933,1758892242559,-480.0,0.00054794,120]
[387822934,1758892242568,-480.0,0.00054794,120]
[387822935,1758892242578,-486.51472971,0.00054794,120]
[387822936,1758892242588,-480.0,0.00054794,120]
[387822937,1758892242598,-487.6428177,0.00054794,120]
[387822938,1758892242609,-480.0,0.00054794,120]
[387822939,1758892242618,-480.0,0.00054794,120]
[387822940,1758892242628,-480.0,0.00054794,120]
[387822941,1758892242637,-480.0,0.00054794,120]
[387822942,1758892242647,-480.0,0.00054794,120]
[387822943,1758892242656,-487.29723889,0.00054794,120]
[387822944,1758892242665,-480.0,0.00054794,120]
[387822945,1758892242674,-480.0,0.00054794,120]
[387822946,1758892242684,-480.0,0.00054794,120]
[387822947,1758892242693,-480.0,0.00054794,120]
[387822948,1758892242703,-480.0,0.00054794,120]
[387822949,1758892242712,-480.0,0.00054794,120]
[387822950,1758892242721,-480.0,0.00054794,120]
[387822951,1758892242731,-339.9618411,0.00054794,120]
[387822952,1758892242741,-480.0,0.00054794,120]
[387822953,1758892242750,-480.0,0.00054794,120]
[387822954,1758892242760,-480.0,0.00054794,120]
[387822955,1758892242769,-480.0,0.00054794,120]
[387822956,1758892242778,-480.0,0.00054794,120]
[387822957,1758892242788,-480.0,0.00054794,120]
[387822958,1758892242797,-480.0,0.00054794,120]